lending/lending_fUSD_20250122
["ID","MTS","AMOUNT","RATE_DAILY","PERIOD"]
[349929759,1737514243898,-500.0,0.00021669,2]
[349929761,1737514243907,-131870.92635125,0.0002167,2]
[349929763,1737514243916,-160.0782986,0.00021673,2]
[349929765,1737514243926,-160.0783115,0.00021673,2]
[349929767,1737514243935,-160.97607216,0.00021673,2]
[349929769,1737514243943,-500.0,0.00021673,2]
[349929771,1737514243956,-923.79772171,0.00021709,2]
[349929773,1737514243965,-679.42,0.00021716,2]
[349929775,1737514243974,-576.31,0.00021716,2]
[349929777,1737514243983,-1701.44,0.00021716,2]
[349929779,1737514243993,-1975.93,0.00021716,2]
[349929781,1737514244002,-899.95,0.00021716,2]
[349929783,1737514244011,-2506.35,0.00021716,2]
[349929785,1737514244020,-731.96,0.00021716,2]
[349929787,1737514244030,-1302.581512,0.00021716,2]
[349929789,1737514244039,-500.0,0.00021716,2]
[349929791,1737514244048,-500.0,0.00021716,2]
[349929793,1737514244057,-160.271591,0.00021716,2]
[349929795,1737514244067,-500.0,0.00021716,2]
[349929797,1737514244076,-832.13,0.00021716,2]
[349929799,1737514244084,-157.726337,0.00021716,2]
[349929800,1737514244093,-1975.98,0.00021716,2]
[349929802,1737514244102,-1122.59,0.00021716,2]
[349929804,1737514244111,-500.0,0.00021716,2]
[349929806,1737514244122,-1370.65299,0.00021716,2]
[349929808,1737514244131,-984.85,0.00021716,2]
[349929810,1737514244141,-1214.99,0.00021716,2]
[349929812,1737514244151,-622.71,0.00021716,2]
[349929814,1737514244160,-2941.57,0.00021716,2]
[349929817,1737514244170,-1022.22,0.00021716,2]
[349929818,1737514244180,-614.24,0.00021716,2]
[349929820,1737514244190,-2989.25,0.00021716,2]
[349929822,1737514244199,-1095.19,0.00021716,2]
[349929824,1737514244208,-756.22,0.00021716,2]
[349929826,1737514244218,-702.24,0.00021716,2]
[349929828,1737514244227,-2755.29,0.00021716,2]
[349929830,1737514244237,-3317.35,0.00021716,2]
[349929833,1737514244246,-500.0,0.00021716,2]
[349929834,1737514244255,-1232.74,0.00021716,2]
[349929836,1737514244264,-895.65,0.00021716,2]
[349929838,1737514244273,-3046.74,0.00021716,2]
[349929840,1737514244282,-995.93,0.00021716,2]
[349929843,1737514244292,-500.0,0.00021716,2]
[349929845,1737514244301,-528.55,0.00021716,2]
[349929847,1737514244310,-523.18835015,0.00021716,2]
[349929849,1737514244319,-500.0,0.00021717,2]
[349929851,1737514244328,-668.08,0.00021717,2]
[349929853,1737514244337,-500.0,0.00021717,2]
[349929855,1737514244347,-500.0,0.00021717,2]
[349929857,1737514244356,-923.45,0.00021717,2]
[349929859,1737514244365,-929.38,0.00021717,2]
[349929861,1737514244374,-602.65,0.00021717,2]
[349929863,1737514244383,-500.0,0.00021717,2]
[349929864,1737514244392,-500.0,0.00021717,2]
[349929866,1737514244401,-500.0,0.00021717,2]
[349929868,1737514244410,-1367.86,0.00021717,2]
[349929870,1737514244419,-847.36,0.00021717,2]
[349929872,1737514244428,-697.94,0.00021717,2]
[349929874,1737514244437,-500.0,0.00021717,2]
[349929876,1737514244446,-500.0,0.00021717,2]
[349929878,1737514244455,-500.0,0.00021717,2]
[349929880,1737514244465,-500.0,0.00021717,2]
[349929882,1737514244474,-933.06,0.00021717,2]
[349929884,1737514244484,-500.0,0.00021717,2]
[349929886,1737514244492,-500.0,0.00021717,2]
[349929888,1737514244501,-500.0,0.00021717,2]
[349929890,1737514244510,-500.0,0.00021717,2]
[349929892,1737514244519,-500.0,0.00021717,2]
[349929894,1737514244528,-646.55,0.00021717,2]
[349929896,1737514244537,-500.0,0.00021717,2]
[349929898,1737514244546,-500.0,0.00021717,2]
[349929899,1737514244555,-500.0,0.00021717,2]
[349929900,1737514244563,-577.18981267,0.00021717,2]
[349929901,1737514244572,-1010.57,0.00021717,2]
[349929902,1737514244581,-500.0,0.00021717,2]
[349929903,1737514244590,-500.0,0.00021717,2]
[349929904,1737514244599,-500.0,0.00021717,2]
[349929905,1737514244607,-500.0,0.00021717,2]
[349929907,1737514244616,-500.0,0.00021717,2]
[349929909,1737514244625,-896.94,0.00021717,2]
[349929911,1737514244634,-500.0,0.00021717,2]
[349929913,1737514244643,-500.0,0.00021717,2]
[349929914,1737514244652,-1126.67,0.00021717,2]
[349929916,1737514244661,-500.0,0.00021717,2]
[349929918,1737514244670,-500.0,0.00021717,2]
[349929920,1737514244680,-589.06,0.00021717,2]
[349929922,1737514244689,-500.0,0.00021717,2]
[349929924,1737514244698,-500.0,0.00021717,2]
[349929926,1737514244707,-500.0,0.00021717,2]
[349929928,1737514244717,-500.0,0.00021717,2]
[349929930,1737514244726,-500.0,0.00021717,2]
[349929932,1737514244735,-500.0,0.00021717,2]
[349929934,1737514244744,-1192.67,0.00021717,2]
[349929936,1737514244753,-500.0,0.00021717,2]
[349929938,1737514244762,-500.0,0.00021717,2]
[349929940,1737514244772,-255.36604683,0.00021717,2]
[349929942,1737514244781,-706.49,0.00021717,2]
[349929944,1737514244790,-500.0,0.00021717,2]
[349929946,1737514244800,-500.0,0.00021717,2]
[349929948,1737514244809,-624.71,0.00021717,2]
[349929949,1737514244819,-500.0,0.00021717,2]
[349929950,1737514244828,-529.37,0.00021717,2]
[349929951,1737514244837,-500.0,0.00021717,2]
[349929952,1737514244846,-968.95,0.00021717,2]
[349929953,1737514244855,-500.0,0.00021717,2]
[349929954,1737514244864,-500.0,0.00021717,2]
[349929955,1737514244874,-500.0,0.00021717,2]
[349929956,1737514244883,-571.88,0.00021717,2]
[349929957,1737514244892,-500.0,0.00021717,2]
[349929958,1737514244901,-500.0,0.00021717,2]
[349929959,1737514244911,-500.0,0.00021717,2]
[349929960,1737514244920,-1408.85,0.00021717,2]
[349929961,1737514244930,-648.71,0.00021717,2]
[349929962,1737514244940,-868.33,0.00021717,2]
[349929964,1737514244952,-500.0,0.00021717,2]
[349929966,1737514244960,-500.0,0.00021717,2]
[349929968,1737514244970,-898.14,0.00021717,2]
[349929970,1737514244980,-500.0,0.00021717,2]
[349929972,1737514244991,-500.0,0.00021717,2]
[349929974,1737514245001,-4541.74,0.00021717,2]
[349929976,1737514245010,-1887.02,0.00021717,2]
[349929978,1737514245019,-500.0,0.00021717,2]
[349929980,1737514245031,-3040.0,0.00021717,2]
[349929982,1737514245040,-2898.36,0.00021717,2]
[349930003,1737514245228,-500.0,0.00021717,2]
[349930005,1737514245238,-1331.89,0.00021717,2]
[349930007,1737514245247,-500.0,0.00021717,2]
[349930010,1737514245257,-2320.26,0.00021717,2]
[349930012,1737514245266,-500.0,0.00021717,2]
[349930014,1737514245275,-500.0,0.00021717,2]
[349930015,1737514245285,-1075.43,0.00021717,2]
[349930018,1737514245295,-3032.89,0.00021717,2]
[349930020,1737514245304,-500.0,0.00021717,2]
[349930022,1737514245314,-2542.01,0.00021717,2]
[349930024,1737514245323,-1050.47,0.00021717,2]
[349930026,1737514245332,-529.52,0.00021717,2]
[349930028,1737514245341,-546.58,0.00021717,2]
[349930030,1737514245350,-618.11,0.00021717,2]
[349930032,1737514245359,-519.41,0.00021717,2]
[349930034,1737514245369,-500.0,0.00021717,2]
[349930036,1737514245378,-500.0,0.00021717,2]
[349930038,1737514245387,-2067.09,0.00021717,2]
[349930040,1737514245397,-500.0,0.00021717,2]
[349930042,1737514245406,-500.0,0.00021717,2]
[349930043,1737514245415,-500.0,0.00021717,2]
[349930046,1737514245425,-500.0,0.00021717,2]
[349930048,1737514245434,-1051.93,0.00021717,2]
[349930049,1737514245443,-500.0,0.00021717,2]
[349930052,1737514245453,-167.34734188,0.00021726,2]
[349930054,1737514245462,-500.0,0.00021726,2]
[349930055,1737514245473,-509.11208253,0.00021726,2]
[349930056,1737514245481,-508.59805512,0.00021726,2]
[349930057,1737514245490,-150.0,0.00021726,2]
[349930058,1737514245499,-150.0,0.00021726,2]
[349930059,1737514245508,-500.0,0.00021726,2]
[349930060,1737514245517,-1274.593,0.00021727,2]
[349930061,1737514245526,-2019.0,0.00021727,2]
[349930062,1737514245535,-151.343,0.00021727,2]
[349930064,1737514245543,-636.0,0.00021727,2]
[349930065,1737514245553,-567.0,0.00021727,2]
[349930068,1737514245562,-1864.0,0.00021727,2]
[349930070,1737514245572,-911.511,0.00021727,2]
[349930072,1737514245582,-1264.935,0.00021727,2]
[349930074,1737514245592,-2965.215,0.00021727,2]
[349930076,1737514245602,-781.0,0.00021727,2]
[349930078,1737514245611,-3984.0,0.00021727,2]
[349930080,1737514245621,-150.26,0.00021727,2]
[349930082,1737514245631,-539.05,0.00021727,2]
[349930084,1737514245640,-150.0,0.00021727,2]
[349930086,1737514245650,-287.77895019,0.00021727,2]
[349930088,1737514245659,-1000.0,0.00021727,2]
[349930090,1737514245669,-150.0,0.0002173,2]
[349930092,1737514245678,-923.79772171,0.00021748,2]
[349930094,1737514245688,-150.0,0.00021761,2]
[349930096,1737514245698,-150.0,0.00021767,2]
[349930098,1737514245707,-150.0,0.00021767,2]
[349930100,1737514245717,-177.93032401,0.00021773,2]
[349930102,1737514245726,-500.0,0.00021774,2]
[349930104,1737514245736,-150.0,0.00021784,2]
[349930106,1737514245745,-500.0,0.00021785,2]
[349930108,1737514245754,-500.0,0.00021785,2]
[349930110,1737514245764,-500.0,0.00021785,2]
[349930112,1737514245774,-500.0,0.00021785,2]
[349930114,1737514245784,-500.0,0.00021785,2]
[349930116,1737514245793,-508.84058017,0.00021785,2]
[349930118,1737514245803,-516.2,0.00021785,2]
[349930120,1737514245813,-500.0,0.00021785,2]
[349930122,1737514245822,-500.0,0.00021785,2]
[349930124,1737514245833,-500.0,0.00021785,2]
[349930127,1737514245843,-1007.77,0.00021785,2]
[349930129,1737514245852,-500.0,0.00021785,2]
[349930131,1737514245861,-500.0,0.00021785,2]
[349930133,1737514245871,-500.0,0.00021785,2]
[349930135,1737514245880,-500.0,0.00021785,2]
[349930138,1737514245892,-500.0,0.00021785,2]
[349930141,1737514245901,-500.0,0.00021785,2]
[349930143,1737514245910,-500.0,0.00021785,2]
[349930147,1737514245921,-794.83,0.00021785,2]
[349930150,1737514245930,-500.0,0.00021785,2]
[349930153,1737514245941,-729.24,0.00021785,2]
[349930155,1737514245952,-500.0,0.00021785,2]
[349930159,1737514245963,-848.17,0.00021785,2]
[349930163,1737514245974,-500.0,0.00021785,2]
[349930166,1737514245984,-977.86,0.00021785,2]
[349930168,1737514245995,-627.42,0.00021785,2]
[349930171,1737514246004,-500.0,0.00021785,2]
[349930174,1737514246013,-777.46,0.00021785,2]
[349930176,1737514246022,-500.0,0.00021785,2]
[349930178,1737514246032,-500.0,0.00021785,2]
[349930180,1737514246041,-556.69,0.00021785,2]
[349930181,1737514246051,-817.85,0.00021785,2]
[349930183,1737514246060,-540.06,0.00021785,2]
[349930184,1737514246070,-500.0,0.00021785,2]
[349930186,1737514246078,-500.0,0.00021785,2]
[349930188,1737514246088,-500.0,0.00021785,2]
[349930189,1737514246097,-500.0,0.00021785,2]
[349930191,1737514246107,-500.0,0.00021785,2]
[349930192,1737514246116,-500.0,0.00021785,2]
[349930194,1737514246125,-500.0,0.00021785,2]
[349930195,1737514246135,-780.24,0.00021785,2]
[349930197,1737514246144,-500.0,0.00021785,2]
[349930198,1737514246154,-500.0,0.00021785,2]
[349930200,1737514246163,-500.0,0.00021785,2]
[349930201,1737514246173,-500.0,0.00021785,2]
[349930203,1737514246182,-500.0,0.00021785,2]
[349930204,1737514246191,-646.82,0.00021785,2]
[349930206,1737514246201,-500.0,0.00021785,2]
[349930208,1737514246212,-500.0,0.00021785,2]
[349930209,1737514246222,-500.0,0.00021785,2]
[349930211,1737514246232,-500.0,0.00021785,2]
[349930213,1737514246243,-500.0,0.00021785,2]
[349930214,1737514246252,-500.0,0.00021785,2]
[349930216,1737514246261,-500.0,0.00021785,2]
[349930217,1737514246270,-500.0,0.00021785,2]
[349930219,1737514246279,-500.0,0.00021785,2]
[349930221,1737514246288,-1002.81,0.00021785,2]
[349930222,1737514246299,-825.94,0.00021785,2]
[349930224,1737514246309,-500.0,0.00021785,2]
[349930226,1737514246319,-500.0,0.00021785,2]
[349930227,1737514246328,-996.57,0.00021785,2]
[349930229,1737514246338,-500.0,0.00021785,2]
[349930231,1737514246347,-599.1,0.00021785,2]
[349930232,1737514246356,-500.0,0.00021785,2]
[349930234,1737514246366,-500.0,0.00021785,2]
[349930236,1737514246375,-500.0,0.00021785,2]
[349930237,1737514246385,-500.0,0.00021785,2]
[349930239,1737514246395,-500.0,0.00021785,2]
[349930241,1737514246404,-500.0,0.00021785,2]
[349930242,1737514246413,-500.0,0.00021785,2]
[349930244,1737514246423,-500.0,0.00021785,2]
[349930246,1737514246432,-500.0,0.00021785,2]
[349930247,1737514246441,-500.0,0.00021785,2]
[349930249,1737514246450,-500.0,0.00021785,2]
[349930251,1737514246459,-500.0,0.00021785,2]
[349930252,1737514246470,-500.0,0.00021785,2]
[349930254,1737514246479,-500.0,0.00021785,2]
[349930256,1737514246489,-500.0,0.00021785,2]
[349930257,1737514246498,-500.0,0.00021785,2]
[349930259,1737514246507,-500.0,0.00021785,2]
[349930261,1737514246516,-500.0,0.00021785,2]
[349930262,1737514246525,-500.0,0.00021785,2]
[349930264,1737514246535,-500.0,0.00021785,2]
[349930266,1737514246544,-844.73,0.00021785,2]
[349930267,1737514246553,-500.0,0.00021785,2]
[349930269,1737514246563,-756.89,0.00021785,2]
[349930271,1737514246572,-500.0,0.00021785,2]
[349930272,1737514246581,-746.0,0.00021785,2]
[349930275,1737514246590,-500.0,0.00021785,2]
[349930277,1737514246600,-500.0,0.00021785,2]
[349930279,1737514246609,-500.0,0.00021785,2]
[349930281,1737514246618,-500.0,0.00021785,2]
[349930282,1737514246628,-500.0,0.00021785,2]
[349930284,1737514246637,-1089.7,0.00021785,2]
[349930287,1737514246646,-318.1434901,0.00021785,2]
[349930288,1737514246655,-617.91,0.00021785,2]
[349930290,1737514246665,-541.16,0.00021785,2]
[349930292,1737514246674,-923.79772171,0.00021786,2]
[349930294,1737514246683,-500.0,0.00021786,2]
[349930296,1737514246693,-500.0,0.00021786,2]
[349930298,1737514246702,-500.0,0.00021786,2]
[349930300,1737514246712,-500.0,0.00021786,2]
[349930302,1737514246723,-500.0,0.00021786,2]
[349930304,1737514246732,-500.0,0.00021786,2]
[349930306,1737514246742,-527.92841173,0.00021786,2]
[349930308,1737514246751,-260.74034538,0.00021786,2]
[349930310,1737514246761,-500.0,0.00021786,2]
[349930311,1737514246771,-500.0,0.00021786,2]
[349930312,1737514246780,-434.21781775,0.00021786,2]
[349930313,1737514246790,-514.0779961,0.00021786,2]
[349930314,1737514246799,-500.0,0.00021786,2]
[349930315,1737514246809,-500.0,0.00021786,2]
[349930316,1737514246819,-703.14,0.00021786,2]
[349930317,1737514246828,-500.0,0.00021786,2]
[349930318,1737514246838,-500.0,0.00021786,2]
[349930319,1737514246848,-500.0,0.00021786,2]
[349930320,1737514246857,-240.43063351,0.00021786,2]
[349930321,1737514246867,-500.0,0.00021786,2]
[349930322,1737514246876,-500.0,0.00021786,2]
[349930323,1737514246886,-500.0,0.00021786,2]
[349930324,1737514246896,-500.0,0.00021786,2]
[349930326,1737514246905,-532.50215244,0.00021786,2]
[349930327,1737514246914,-552.62870655,0.00021786,2]
[349930329,1737514246924,-618.12993528,0.00021786,2]
[349930331,1737514246934,-500.0,0.00021786,2]
[349930333,1737514246945,-500.0,0.00021786,2]
[349930335,1737514246958,-500.0,0.00021786,2]
[349930337,1737514246967,-201.42602168,0.00021786,2]
[349930339,1737514246977,-602.36802761,0.00021786,2]
[349930341,1737514246987,-500.0,0.00021786,2]
[349930343,1737514246998,-500.0,0.00021786,2]
[349930345,1737514247008,-500.0,0.00021786,2]
[349930347,1737514247017,-536.82048561,0.00021786,2]
[349930349,1737514247027,-500.0,0.00021786,2]
[349930351,1737514247037,-533.06463912,0.00021786,2]
[349930353,1737514247047,-500.0,0.00021786,2]
[349930355,1737514247056,-230.87520962,0.00021786,2]
[349930357,1737514247066,-382.47559365,0.00021786,2]
[349930359,1737514247075,-504.654327,0.00021786,2]
[349930361,1737514247085,-316.61708942,0.00021786,2]
[349930363,1737514247094,-500.0,0.00021786,2]
[349930365,1737514247104,-500.0,0.00021786,2]
[349930367,1737514247115,-500.0,0.00021786,2]
[349930369,1737514247124,-500.0,0.00021786,2]
[349930371,1737514247134,-500.0,0.00021786,2]
[349930373,1737514247143,-500.0,0.00021786,2]
[349930375,1737514247151,-500.0,0.00021786,2]
[349930377,1737514247161,-500.0,0.00021786,2]
[349930379,1737514247171,-509.6067197,0.00021786,2]
[349930381,1737514247180,-329.05421996,0.00021786,2]
[349930383,1737514247190,-500.0,0.00021786,2]
[349930385,1737514247199,-500.0,0.00021786,2]
[349930387,1737514247210,-500.0,0.00021786,2]
[349930389,1737514247221,-500.0,0.00021786,2]
[349930391,1737514247231,-509.59803716,0.00021786,2]
[349930393,1737514247240,-500.0,0.00021786,2]
[349930395,1737514247249,-500.0,0.00021786,2]
[349930397,1737514247259,-507.13925256,0.00021786,2]
[349930399,1737514247268,-506.90421073,0.00021786,2]
[349930401,1737514247278,-500.0,0.00021786,2]
[349930403,1737514247287,-500.0,0.00021786,2]
[349930405,1737514247297,-500.0,0.00021786,2]
[349930407,1737514247306,-518.20117917,0.00021786,2]
[349930409,1737514247315,-500.0,0.00021786,2]
[349930411,1737514247324,-500.0,0.00021786,2]
[349930413,1737514247334,-310.21548746,0.00021786,2]
[349930415,1737514247343,-500.0,0.00021786,2]
[349930417,1737514247353,-503.85177526,0.00021786,2]
[349930419,1737514247363,-537.58665827,0.00021786,2]
[349930421,1737514247372,-500.0,0.00021786,2]
[349930423,1737514247382,-529.20852611,0.00021786,2]
[349930425,1737514247391,-512.88156819,0.00021786,2]
[349930427,1737514247400,-514.91334463,0.00021786,2]
[349930429,1737514247409,-179.81647299,0.00021786,2]
[349930431,1737514247419,-673.41,0.00021786,2]
[349930433,1737514247428,-515.22163973,0.00021786,2]
[349930435,1737514247438,-500.0,0.00021786,2]
[349930437,1737514247447,-500.0,0.00021786,2]
[349930439,1737514247457,-500.0,0.00021786,2]
[349930441,1737514247467,-500.0,0.00021786,2]
[349930443,1737514247477,-150.0,0.00021786,2]
[349930445,1737514247486,-500.0,0.00021786,2]
[349930447,1737514247496,-500.0,0.00021786,2]
[349930449,1737514247506,-500.0,0.00021786,2]
[349930451,1737514247516,-500.0,0.00021786,2]
[349930453,1737514247525,-500.0,0.00021786,2]
[349930455,1737514247536,-500.0,0.00021786,2]
[349930457,1737514247545,-515.77839965,0.00021786,2]
[349930459,1737514247555,-500.0,0.00021786,2]
[349930461,1737514247564,-500.0,0.00021786,2]
[349930463,1737514247573,-500.0,0.00021786,2]
[349930465,1737514247582,-500.0,0.00021786,2]
[349930467,1737514247592,-500.0,0.00021786,2]
[349930469,1737514247601,-505.62623368,0.00021786,2]
[349930471,1737514247612,-500.0,0.00021786,2]
[349930473,1737514247621,-500.0,0.00021786,2]
[349930475,1737514247630,-500.0,0.00021786,2]
[349930477,1737514247639,-500.0,0.00021786,2]
[349930479,1737514247649,-500.0,0.00021786,2]
[349930481,1737514247659,-500.0,0.00021786,2]
[349930483,1737514247668,-500.0,0.00021786,2]
[349930485,1737514247678,-500.0,0.00021786,2]
[349930487,1737514247687,-521.582879,0.00021786,2]
[349930489,1737514247696,-500.0,0.00021786,2]
[349930491,1737514247705,-500.0,0.00021786,2]
[349930493,1737514247715,-506.10318451,0.00021786,2]
[349930495,1737514247725,-516.14566344,0.00021786,2]
[349930496,1737514247734,-500.0,0.00021786,2]
[349930498,1737514247743,-500.0,0.00021786,2]
[349930500,1737514247752,-492.0,0.00021786,2]
[349930502,1737514247762,-500.0,0.00021786,2]
[349930504,1737514247771,-500.0,0.00021786,2]
[349930506,1737514247780,-500.0,0.00021786,2]
[349930508,1737514247789,-500.0,0.00021786,2]
[349930510,1737514247798,-500.0,0.00021786,2]
[349930512,1737514247807,-500.0,0.00021786,2]
[349930514,1737514247818,-500.0,0.00021786,2]
[349930516,1737514247827,-586.64823408,0.00021786,2]
[349930518,1737514247837,-515.53273202,0.00021786,2]
[349930520,1737514247846,-150.0,0.00021786,2]
[349930522,1737514247856,-500.0,0.00021786,2]
[349930523,1737514247866,-500.0,0.00021786,2]
[349930524,1737514247875,-500.0,0.00021786,2]
[349930525,1737514247884,-500.0,0.00021786,2]
[349930526,1737514247893,-500.0,0.00021786,2]
[349930527,1737514247902,-500.0,0.00021786,2]
[349930528,1737514247912,-500.0,0.00021786,2]
[349930529,1737514247922,-500.0,0.00021786,2]
[349930530,1737514247932,-500.0,0.00021786,2]
[349930531,1737514247943,-500.0,0.00021786,2]
[349930532,1737514247954,-500.0,0.00021786,2]
[349930533,1737514247963,-500.0,0.00021786,2]
[349930534,1737514247974,-500.0,0.00021786,2]
[349930535,1737514247983,-500.0,0.00021786,2]
[349930536,1737514247994,-639.21,0.00021786,2]
[349930537,1737514248003,-500.0,0.00021786,2]
[349930538,1737514248013,-150.0,0.00021787,2]
[349930539,1737514248024,-150.0,0.00021789,2]
[349930540,1737514248034,-150.0,0.00021792,2]
[349930541,1737514248044,-150.0,0.00021795,2]
[349930542,1737514248054,-2016.55,0.000218,2]
[349930543,1737514248064,-4184.35420078,0.000218,2]
[349930544,1737514248074,-150.0,0.00021805,2]
[349930545,1737514248083,-150.0,0.00021807,2]
[349930546,1737514248092,-150.0,0.00021811,2]
[349930547,1737514248102,-150.0,0.00021812,2]
[349930548,1737514248111,-150.0,0.00021812,2]
[349930549,1737514248121,-150.0,0.00021814,2]
[349930550,1737514248130,-150.0,0.00021815,2]
[349930551,1737514248140,-150.0,0.00021816,2]
[349930552,1737514248150,-150.0,0.00021816,2]
[349930553,1737514248160,-150.0,0.00021821,2]
[349930554,1737514248170,-150.0,0.00021822,2]
[349930555,1737514248179,-923.79772171,0.00021824,2]
[349930556,1737514248188,-150.0,0.00021834,2]
[349930557,1737514248197,-150.0,0.00021837,2]
[349930558,1737514248207,-150.0,0.0002184,2]
[349930559,1737514248218,-150.0,0.00021846,2]
[349930560,1737514248228,-150.0,0.00021847,2]
[349930561,1737514248237,-515.01,0.00021847,2]
[349930562,1737514248247,-1104.44,0.00021847,2]
[349930563,1737514248257,-500.0,0.00021847,2]
[349930564,1737514248267,-1721.87,0.00021847,2]
[349930565,1737514248277,-500.0,0.00021847,2]
[349930566,1737514248286,-2424.15,0.00021847,2]
[349930567,1737514248297,-2808.05,0.00021847,2]
[349930568,1737514248306,-645.96396611,0.00021847,2]
[349930569,1737514248316,-6072.16,0.00021847,2]
[349930570,1737514248326,-8749.55,0.00021847,2]
[349930571,1737514248335,-586.67,0.00021847,2]
[349930572,1737514248345,-1191.62,0.00021847,2]
[349930573,1737514248355,-500.0,0.00021847,2]
[349930574,1737514248365,-1129.77,0.00021847,2]
[349930575,1737514248375,-500.0,0.00021847,2]
[349930576,1737514248384,-638.84,0.00021847,2]
[349930577,1737514248394,-667.81,0.00021847,2]
[349930578,1737514248403,-500.0,0.00021847,2]
[349930579,1737514248413,-1000.0,0.00021847,2]
[349930580,1737514248423,-507.64,0.00021847,2]
[349930581,1737514248432,-923.34,0.00021847,2]
[349930582,1737514248442,-1535.73,0.00021847,2]
[349930583,1737514248454,-500.0,0.00021847,2]
[349930584,1737514248463,-500.0,0.00021849,2]
[349930585,1737514248475,-500.0,0.00021849,2]
[349930586,1737514248485,-658.11,0.00021849,2]
[349930587,1737514248496,-500.0,0.00021849,2]
[349930588,1737514248506,-150.0,0.0002185,2]
[349930589,1737514248515,-150.0,0.00021855,2]
[349930590,1737514248527,-150.0,0.00021857,2]
[349930591,1737514248536,-150.0,0.0002186,2]
[349930592,1737514248546,-150.0,0.0002186,2]
[349930593,1737514248555,-923.79772171,0.00021862,2]
[349930594,1737514248565,-150.0,0.00021863,2]
[349930595,1737514248575,-150.0,0.00021869,2]
[349930596,1737514248584,-471.21978627,0.0002187,2]
[349930597,1737514248593,-700.0,0.0002187,2]
[349930598,1737514248603,-700.0,0.0002187,2]
[349930599,1737514248612,-700.0,0.0002187,2]
[349930600,1737514248623,-1206.29951822,0.0002187,2]
[349930601,1737514248632,-154.81545328,0.0002187,2]
[349930602,1737514248641,-300.0,0.00021874,2]
[349930603,1737514248651,-150.0,0.00021874,2]
[349930604,1737514248660,-1000.0,0.00021876,2]
[349930605,1737514248670,-150.0,0.00021883,2]
[349930606,1737514248680,-150.0,0.00021886,2]
[349930607,1737514248689,-150.0,0.00021897,2]
[349930608,1737514248699,-150.0,0.00021899,2]
[349930609,1737514248708,-150.0,0.00021899,2]
[349930610,1737514248718,-25360.7421717,0.000219,2]
[349930611,1737514248728,-5330.7934,0.000219,2]
[349930612,1737514248891,-2028.97467069,0.000219,2]
[349930613,1737514248901,-923.79772171,0.000219,2]
[349930614,1737514248910,-24240.82457276,0.000219,2]
[349930615,1737514248920,-150.0,0.00021911,2]
[349930616,1737514248930,-150.0,0.00021912,2]
[349930617,1737514248939,-776.6,0.00021917,2]
[349930618,1737514248951,-500.99612043,0.00021917,8]
[349930619,1737514248961,-379.50415993,0.00021917,2]
[349930620,1737514248971,-627.37,0.00021917,2]
[349930621,1737514248980,-4000.0,0.00021918,2]
[349930622,1737514248990,-150.0,0.00021918,2]